[Event "EYCC Open U10 2021"]
[Site "Tornelo"]
[Date "2021.10.15"]
[Round "6.11"]
[White "Cankurt, Arda"]
[Black "Buchinger, Alexis"]
[Result "1-0"]
[ECO "E01"]
[WhiteElo "1356"]
[BlackElo "1614"]
[Annotator "NA RC"]
[PlyCount "147"]
[EventDate "2021.10.15"]
[EventType "swiss"]
[EventCountry "NET"]
[SourceTitle "playchess.com"]
[Source "ChessBase"]
[SourceQuality "1"]
[TimeControl "5400+30"]

1. d4 {[%emt 0:00:30]} d5 {[%emt 0:00:41]} 2. c4 {[%emt 0:00:05]} e6 {[%emt 0:00:09]} 3. Nf3 {[%emt 0:00:05]} Nf6 {[%emt 0:00:14]} 4. g3 {[%emt 0:00:08]} c6 {[%emt 0:00:26]} 5. Bg2 {[%emt 0:00:06]} Bb4+ {[%emt 0:00:28]} 6. Nbd2 {[%emt 0:00:09]} O-O {[%emt 0:00:38]} 7. O-O {[%emt 0:00:07]} Nbd7 {[%emt 0:00:59]} 8. Qc2 {[%emt 0:00:23]} Re8 {[%emt 0:00:43]} 9. a3 {[%emt 0:00:59]} Bd6 {[%emt 0:00:22]} 10. e4 {[%emt 0:00:24]} dxe4 {[%emt 0:01:08]} 11. Nxe4 {[%emt 0:00:33]} Nxe4 {[%emt 0:01:04]} 12. Qxe4 {[%emt 0:00:07]} e5 {[%emt 0:02:37]} 13. dxe5 {[%emt 0:04:26]} Nxe5 {[%emt 0:00:40]} 14. Ng5 {[%emt 0:11:18]} Ng6 {[%emt 0:02:36]} 15. Qd3 {[%emt 0:01:09]} Bg4 {[%emt 0:00:53]} 16. Be3 {[%emt 0:01:32]} Qe7 {[%emt 0:03:13]} 17. h3 {[%emt 0:00:42]} Be2 {[%emt 0:05:14]} 18. Qxe2 {[%emt 0:00:23]} Qxg5 {[%emt 0:00:05]} 19. Qd2 {[%emt 0:05:34]} Qe7 {[%emt 0:03:40]} 20. Rfe1 {[%emt 0:00:36]} Qc7 {[%emt 0:01:32]} 21. c5 {[%emt 0:03:56]} Be5 {[%emt 0:01:19]} 22. f4 {[%emt 0:04:09]} Rad8 {[%emt 0:00:58]} 23. Qc2 {[%emt 0:03:53]} Bf6 {[%emt 0:05:08]} 24. Kh2 {[%emt 0:01:12]} Re7 {[%emt 0:04:21]} 25. Re2 {[%emt 0:05:40]} Rde8 {[%emt 0:01:09]} 26. Rae1 {[%emt 0:00:35]} h5 {[%emt 0:02:04]} 27. h4 {[%emt 0:00:57]} Nxh4 {[%emt 0:02:34]} 28. Bh1 {[%emt 0:09:21]} Ng6 {[%emt 0:00:41]} 29. Bf2 {[%emt 0:01:12]} Rxe2 {[%emt 0:00:18]} 30. Rxe2 {[%emt 0:00:07]} Rxe2 {[%emt 0:01:59]} 31. Qxe2 {[%emt 0:02:27]} Qe7 {[%emt 0:00:47]} 32. Qc2 {[%emt 0:01:57]} h4 {[%emt 0:01:18]} 33. Be4 {[%emt 0:00:39]} Nf8 {[%emt 0:00:36]} 34. b4 {[%emt 0:00:53]} hxg3+ {[%emt 0:01:10]} 35. Bxg3 {[%emt 0:00:16]} Ne6 {[%emt 0:00:13]} 36. Qd3 {[%emt 0:02:47]} Bh4 {[%emt 0:00:31]} 37. Bh7+ {[%emt 0:08:46]} Kh8 {[%emt 0:01:08]} 38. Be4 {[%emt 0:00:24]} Bxg3+ {[%emt 0:00:50]} 39. Qxg3 {[%emt 0:00:44]} Qc7 {[%emt 0:01:20]} 40. f5 {[%emt 0:03:29]} Qxg3+ {[%emt 0:00:41]} 41. Kxg3 {[%emt 0:00:06]} Nf8 {[%emt 0:01:49]} 42. b5 {[%emt 0:00:44]} Nd7 {[%emt 0:01:48]} 43. bxc6 {[%emt 0:00:29]} bxc6 {[%emt 0:00:04]} 44. Bxc6 {[%emt 0:00:07]} Nxc5 {[%emt 0:00:03]} 45. Kf4 {[%emt 0:00:23]} f6 {[%emt 0:09:34]} 46. Ke3 {[%emt 0:01:32]} Kh7 {[%emt 0:03:32]} 47. Kd4 {[%emt 0:00:11]} Nb3+ {[%emt 0:07:54]} 48. Kc3 {[%emt 0:02:10]} Nc5 {[%emt 0:04:16]} 49. Kc4 {[%emt 0:00:25]} Na6 {[%emt 0:00:18]} 50. Be4 {[%emt 0:00:54]} Kh6 {[%emt 0:04:03]} 51. Kd5 {[%emt 0:03:16]} Kg5 {[%emt 0:18:22]} 52. Kc6 {[%emt 0:00:43]} Kf4 {[%emt 0:00:22]} 53. Bd3 {[%emt 0:00:14]} Nb8+ {[%emt 0:00:10]} 54. Kc7 {[%emt 0:00:07]} Na6+ {[%emt 0:00:12]} 55. Bxa6 {[%emt 0:00:08]} Kxf5 {[%emt 0:00:04]} 56. Kb7 {[%emt 0:00:31]} g5 {[%emt 0:00:09]} 57. Kxa7 {[%emt 0:00:05]} Ke5 {[%emt 0:00:59]} 58. a4 {[%emt 0:00:21]} f5 {[%emt 0:01:53]} 59. a5 {[%emt 0:00:09]} g4 {[%emt 0:01:33]} 60. Kb6 {[%emt 0:00:16]} f4 {[%emt 0:00:11]} 61. Bc8 {[%emt 0:00:38]} g3 {[%emt 0:00:25]} 62. Bb7 {[%emt 0:00:14]} Kd4 {[%emt 0:01:44]} 63. a6 {[%emt 0:00:06]} Ke3 {[%emt 0:00:03]} 64. a7 {[%emt 0:00:11]} f3 {[%emt 0:00:03]} 65. Bxf3 {[%emt 0:00:45]} Kxf3 {[%emt 0:00:04]} 66. a8=Q+ {[%emt 0:00:08]} Kf2 {[%emt 0:00:04]} 67. Qf8+ {[%emt 0:00:08]} Kg1 {[%emt 0:00:10]} 68. Kc5 {[%emt 0:00:20]} g2 {[%emt 0:00:09]} 69. Kd4 {[%emt 0:00:23]} Kh2 {[%emt 0:00:18]} 70. Qf4+ {[%emt 0:00:41]} Kh3 {[%emt 0:00:17]} 71. Qf2 {[%emt 0:00:12]} Kh2 {[%emt 0:00:42]} 72. Qh4+ {[%emt 0:00:07]} Kg1 {[%emt 0:00:04]} 73. Ke3 {[%emt 0:00:07]} Kf1 {[%emt 0:00:09]} 74. Qf2# {[%emt 0:00:05]} 1-0

[Event "EYCC Open U10 2021"]
[Site "Tornelo"]
[Date "2021.10.15"]
[Round "6.12"]
[White "Zecha, Oscar"]
[Black "Ekmekcioglu, Gokdeniz"]
[Result "1-0"]
[ECO "E01"]
[WhiteElo "1612"]
[BlackElo "1463"]
[Annotator "NA RC"]
[PlyCount "79"]
[EventDate "2021.10.15"]
[EventType "swiss"]
[EventCountry "NET"]
[SourceTitle "playchess.com"]
[Source "ChessBase"]
[SourceQuality "1"]
[TimeControl "5400+30"]

1. d4 {[%emt 0:00:30]} Nf6 {[%emt 0:00:46]} 2. c4 {[%emt 0:00:03]} e6 {[%emt 0:01:53]} 3. Nf3 {[%emt 0:00:04]} d5 {[%emt 0:00:06]} 4. g3 {[%emt 0:00:03]} c6 {[%emt 0:00:04]} 5. Bg2 {[%emt 0:00:09]} Bd6 {[%emt 0:00:02]} 6. O-O {[%emt 0:06:08]} O-O {[%emt 0:01:01]} 7. Nc3 {[%emt 0:00:17]} Nbd7 {[%emt 0:00:48]} 8. Re1 {[%emt 0:03:45]} dxc4 {[%emt 0:02:12]} 9. a4 {[%emt 0:03:15]} Nd5 {[%emt 0:03:30]} 10. Bd2 {[%emt 0:06:33]} Rb8 {[%emt 0:04:42]} 11. e4 {[%emt 0:01:59]} Nxc3 {[%emt 0:00:25]} 12. Bxc3 {[%emt 0:00:03]} b5 {[%emt 0:01:00]} 13. axb5 {[%emt 0:00:42]} cxb5 {[%emt 0:00:16]} 14. Rxa7 {[%emt 0:00:57]} Qb6 {[%emt 0:02:00]} 15. Ra1 {[%emt 0:01:24]} b4 {[%emt 0:04:07]} 16. Bd2 {[%emt 0:00:16]} Ba6 {[%emt 0:01:47]} 17. Be3 {[%emt 0:05:04]} Qb5 {[%emt 0:02:34]} 18. b3 {[%emt 0:03:24]} Nb6 {[%emt 0:07:25]} 19. Nd2 {[%emt 0:02:44]} c3 {[%emt 0:07:31]} 20. Bf1 {[%emt 0:00:52]} cxd2 {[%emt 0:00:55]} 21. Qxd2 {[%emt 0:01:03]} Qc6 {[%emt 0:00:40]} 22. Rxa6 {[%emt 0:00:33]} Qxe4 {[%emt 0:01:50]} 23. d5 {[%emt 0:00:58]} Nxd5 {[%emt 0:02:30]} 24. Rxd6 {[%emt 0:00:54]} Nxe3 {[%emt 0:00:24]} 25. Qxe3 {[%emt 0:00:47]} Qc2 {[%emt 0:00:29]} 26. Bd3 {[%emt 0:01:28]} Qa2 {[%emt 0:00:39]} 27. Ra6 {[%emt 0:06:46]} Qb2 {[%emt 0:00:21]} 28. Ra7 {[%emt 0:01:30]} g6 {[%emt 0:00:21]} 29. Bc4 {[%emt 0:00:23]} Qf6 {[%emt 0:01:13]} 30. Qe5 {[%emt 0:00:34]} Qd8 {[%emt 0:02:13]} 31. Qc7 {[%emt 0:02:10]} Qd2 {[%emt 0:01:06]} 32. Rxe6 {[%emt 0:00:54]} Rbc8 {[%emt 0:00:41]} 33. Qe5 {[%emt 0:01:51]} Qc1+ {[%emt 0:01:16]} 34. Kg2 {[%emt 0:00:21]} Rxc4 {[%emt 0:00:28]} 35. bxc4 {[%emt 0:00:48]} Qxc4 {[%emt 0:00:04]} 36. Rb6 {[%emt 0:02:04]} b3 {[%emt 0:00:37]} 37. Rab7 {[%emt 0:02:12]} b2 {[%emt 0:00:54]} 38. Rb8 {[%emt 0:01:43]} b1=Q {[%emt 0:00:35]} 39. Rxb1 {[%emt 0:00:32]} Qc6+ {[%emt 0:00:13]} 40. Kg1 {[%emt 0:00:05]} 1-0

[Event "EYCC Open U10 2021"]
[Site "Tornelo"]
[Date "2021.10.15"]
[Round "7.1"]
[White "Negrean, Andrei"]
[Black "Temirbekov, Taimaz"]
[Result "1-0"]
[ECO "B52"]
[WhiteElo "1847"]
[BlackElo "1573"]
[Annotator "NA RC"]
[PlyCount "63"]
[EventDate "2021.10.15"]
[EventType "swiss"]
[EventCountry "NET"]
[SourceTitle "playchess.com"]
[Source "ChessBase"]
[SourceQuality "1"]
[TimeControl "5400+30"]

1. e4 {[%emt 0:00:30]} c5 {[%emt 0:00:36]} 2. Nf3 {[%emt 0:00:09]} d6 {[%emt 0:00:07]} 3. Bb5+ {[%emt 0:00:23]} Bd7 {[%emt 0:00:11]} 4. Bxd7+ {[%emt 0:00:21]} Qxd7 {[%emt 0:00:05]} 5. O-O {[%emt 0:00:25]} Nf6 {[%emt 0:00:10]} 6. e5 {[%emt 0:00:36]} dxe5 {[%emt 0:00:06]} 7. Nxe5 {[%emt 0:00:08]} Qc7 {[%emt 0:00:06]} 8. d4 {[%emt 0:02:42]} cxd4 {[%emt 0:00:07]} 9. Qxd4 {[%emt 0:00:29]} Nc6 {[%emt 0:00:14]} 10. Nxc6 {[%emt 0:01:05]} Qxc6 {[%emt 0:00:18]} 11. Bg5 {[%emt 0:18:03]} Ne4 {[%emt 0:00:14]} 12. Be3 {[%emt 0:02:12]} e6 {[%emt 0:01:49]} 13. c4 {[%emt 0:02:54]} Be7 {[%emt 0:01:02]} 14. Nc3 {[%emt 0:04:34]} Nxc3 {[%emt 0:00:41]} 15. Qxc3 {[%emt 0:01:38]} O-O {[%emt 0:08:03]} 16. Rfd1 {[%emt 0:12:58]} a5 {[%emt 0:03:56]} 17. Rd3 {[%emt 0:06:33]} Rfc8 {[%emt 0:14:27]} 18. c5 {[%emt 0:08:18]} Bxc5 {[%emt 0:02:20]} 19. Bxc5 {[%emt 0:00:31]} Qxc5 {[%emt 0:00:06]} 20. Rd8+ {[%emt 0:00:22]} Qf8 {[%emt 0:01:00]} 21. Rxf8+ {[%emt 0:00:08]} Kxf8 {[%emt 0:00:04]} 22. Qb3 {[%emt 0:01:06]} Rab8 {[%emt 0:00:15]} 23. Qa3+ {[%emt 0:00:18]} Kg8 {[%emt 0:00:06]} 24. Qxa5 {[%emt 0:00:22]} Ra8 {[%emt 0:00:07]} 25. Qd2 {[%emt 0:00:22]} Rd8 {[%emt 0:00:06]} 26. Qe2 {[%emt 0:00:10]} g6 {[%emt 0:00:17]} 27. g3 {[%emt 0:00:32]} Rd5 {[%emt 0:01:06]} 28. a4 {[%emt 0:01:11]} h5 {[%emt 0:00:29]} 29. Rd1 {[%emt 0:00:17]} Rad8 {[%emt 0:00:36]} 30. Rxd5 {[%emt 0:00:06]} Rxd5 {[%emt 0:00:05]} 31. b4 {[%emt 0:00:07]} Kg7 {[%emt 0:00:07]} 32. a5 {[%emt 0:00:08]} 1-0

[Event "EYCC Open U10 2021"]
[Site "Tornelo"]
[Date "2021.10.15"]
[Round "7.2"]
[White "Oikonomopoulos, Filippos"]
[Black "Petukhov, Dmitriy"]
[Result "1/2-1/2"]
[ECO "D02"]
[WhiteElo "1650"]
[BlackElo "1769"]
[Annotator "NA RC"]
[PlyCount "141"]
[EventDate "2021.10.15"]
[EventType "swiss"]
[EventCountry "NET"]
[SourceTitle "playchess.com"]
[Source "ChessBase"]
[SourceQuality "1"]
[TimeControl "5400+30"]

1. d4 {[%emt 0:00:30]} d5 {[%emt 0:00:35]} 2. Bf4 {[%emt 0:00:04]} Nf6 {[%emt 0:00:08]} 3. e3 {[%emt 0:00:10]} c5 {[%emt 0:00:07]} 4. c3 {[%emt 0:00:12]} e6 {[%emt 0:00:09]} 5. Nd2 {[%emt 0:00:14]} Nc6 {[%emt 0:00:11]} 6. Ngf3 {[%emt 0:00:12]} Bd6 {[%emt 0:00:34]} 7. Bg3 {[%emt 0:03:44]} Bxg3 {[%emt 0:02:09]} 8. hxg3 {[%emt 0:00:10]} Qe7 {[%emt 0:07:01]} 9. Ne5 {[%emt 0:01:13]} cxd4 {[%emt 0:01:48]} 10. exd4 {[%emt 0:00:19]} Nxe5 {[%emt 0:09:45]} 11. dxe5 {[%emt 0:00:09]} Nd7 {[%emt 0:00:05]} 12. Nf3 {[%emt 0:02:24]} f6 {[%emt 0:09:30]} 13. Qd4 {[%emt 0:11:19]} f5 {[%emt 0:14:29]} 14. Bd3 {[%emt 0:14:08]} Nc5 {[%emt 0:05:28]} 15. O-O {[%emt 0:05:16]} O-O {[%emt 0:00:54]} 16. Qe3 {[%emt 0:09:56]} Bd7 {[%emt 0:04:49]} 17. Rfd1 {[%emt 0:08:11]} Be8 {[%emt 0:00:28]} 18. c4 {[%emt 0:15:14]} Bc6 {[%emt 0:04:51]} 19. Rac1 {[%emt 0:03:18]} Rac8 {[%emt 0:06:57]} 20. Bb1 {[%emt 0:04:51]} dxc4 {[%emt 0:07:41]} 21. Rxc4 {[%emt 0:00:54]} Bd5 {[%emt 0:00:11]} 22. Rcc1 {[%emt 0:02:37]} b6 {[%emt 0:04:59]} 23. Nd4 {[%emt 0:01:13]} g6 {[%emt 0:01:11]} 24. Nb5 {[%emt 0:01:52]} Rfd8 {[%emt 0:00:55]} 25. Nd6 {[%emt 0:01:45]} Rc7 {[%emt 0:00:18]} 26. b4 {[%emt 0:02:10]} Nb7 {[%emt 0:00:29]} 27. Rxc7 {[%emt 0:01:20]} Qxc7 {[%emt 0:00:05]} 28. Rc1 {[%emt 0:00:13]} Qd7 {[%emt 0:00:09]} 29. Nxb7 {[%emt 0:02:10]} Qxb7 {[%emt 0:00:21]} 30. f3 {[%emt 0:00:56]} Rc8 {[%emt 0:00:35]} 31. Rc3 {[%emt 0:00:32]} Qa6 {[%emt 0:01:29]} 32. a3 {[%emt 0:01:52]} Rc4 {[%emt 0:01:48]} 33. Qe2 {[%emt 0:01:28]} b5 {[%emt 0:00:18]} 34. Rxc4 {[%emt 0:02:06]} bxc4 {[%emt 0:00:08]} 35. Qe3 {[%emt 0:00:13]} Qa4 {[%emt 0:05:14]} 36. Qg5 {[%emt 0:01:38]} Qd1+ {[%emt 0:00:21]} 37. Kh2 {[%emt 0:00:06]} Bc6 {[%emt 0:01:38]} 38. Qe7 {[%emt 0:00:44]} Qd5 {[%emt 0:00:41]} 39. Ba2 {[%emt 0:02:30]} a6 {[%emt 0:00:25]} 40. Qd6 {[%emt 0:01:00]} Bb5 {[%emt 0:01:53]} 41. Qb8+ {[%emt 0:00:50]} Kg7 {[%emt 0:00:34]} 42. Qc7+ {[%emt 0:00:12]} Kh6 {[%emt 0:00:20]} 43. a4 {[%emt 0:00:14]} Bc6 {[%emt 0:00:47]} 44. Qb6 {[%emt 0:01:22]} Bxa4 {[%emt 0:00:21]} 45. Qxa6 {[%emt 0:00:14]} Bb3 {[%emt 0:02:24]} 46. Qa3 {[%emt 0:00:37]} Qxe5 {[%emt 0:01:22]} 47. Qc1+ {[%emt 0:01:05]} g5 {[%emt 0:00:24]} 48. Bxb3 {[%emt 0:00:30]} cxb3 {[%emt 0:00:03]} 49. Qc4 {[%emt 0:00:06]} Qd5 {[%emt 0:00:41]} 50. Qc3 {[%emt 0:00:25]} Kg6 {[%emt 0:00:24]} 51. f4 {[%emt 0:00:40]} gxf4 {[%emt 0:00:22]} 52. gxf4 {[%emt 0:00:04]} Qd1 {[%emt 0:01:53]} 53. Qe3 {[%emt 0:00:46]} Qd5 {[%emt 0:00:44]} 54. Qc3 {[%emt 0:00:19]} Qe4 {[%emt 0:02:39]} 55. Qxb3 {[%emt 0:00:24]} Qxf4+ {[%emt 0:00:02]} 56. Qg3+ {[%emt 0:00:50]} Qxg3+ {[%emt 0:00:04]} 57. Kxg3 {[%emt 0:00:02]} Kf6 {[%emt 0:00:05]} 58. b5 {[%emt 0:00:02]} Ke5 {[%emt 0:00:28]} 59. b6 {[%emt 0:00:04]} Kd6 {[%emt 0:00:36]} 60. Kf4 {[%emt 0:00:07]} h5 {[%emt 0:01:03]} 61. g3 {[%emt 0:02:12]} Kc6 {[%emt 0:00:10]} 62. Ke5 {[%emt 0:00:31]} Kxb6 {[%emt 0:00:16]} 63. Kxe6 {[%emt 0:00:05]} f4 {[%emt 0:00:56]} 64. gxf4 {[%emt 0:00:04]} h4 {[%emt 0:00:03]} 65. f5 {[%emt 0:00:02]} h3 {[%emt 0:00:03]} 66. f6 {[%emt 0:00:03]} h2 {[%emt 0:00:04]} 67. f7 {[%emt 0:00:02]} h1=Q {[%emt 0:00:05]} 68. f8=Q {[%emt 0:00:04]} Qe1+ {[%emt 0:00:03]} 69. Kf7 {[%emt 0:00:03]} Qf2+ {[%emt 0:00:05]} 70. Kg8 {[%emt 0:00:03]} Qxf8+ {[%emt 0:00:03]} 71. Kxf8 {[%emt 0:00:02]} 1/2-1/2

[Event "EYCC Open U10 2021"]
[Site "Tornelo"]
[Date "2021.10.15"]
[Round "7.5"]
[White "Surikov, Alexey"]
[Black "Ochedzan, Filip"]
[Result "1-0"]
[ECO "E04"]
[WhiteElo "1548"]
[BlackElo "1696"]
[Annotator "NA RC"]
[PlyCount "85"]
[EventDate "2021.10.15"]
[EventType "swiss"]
[EventCountry "NET"]
[SourceTitle "playchess.com"]
[Source "ChessBase"]
[SourceQuality "1"]
[TimeControl "5400+30"]

1. d4 {[%emt 0:00:30]} d5 {[%emt 0:00:36]} 2. Nf3 {[%emt 0:00:09]} Nf6 {[%emt 0:00:05]} 3. c4 {[%emt 0:00:04]} dxc4 {[%emt 0:00:05]} 4. g3 {[%emt 0:00:06]} e6 {[%emt 0:00:43]} 5. Bg2 {[%emt 0:00:44]} Bd6 {[%emt 0:05:28]} 6. O-O {[%emt 0:01:23]} O-O {[%emt 0:10:17]} 7. Qc2 {[%emt 0:00:22]} Nc6 {[%emt 0:05:31]} 8. Qxc4 {[%emt 0:03:12]} Qe7 {[%emt 0:03:49]} 9. Nc3 {[%emt 0:31:04]} e5 {[%emt 0:10:00]} 10. Bg5 {[%emt 0:01:30]} Kh8 {[%emt 0:11:47]} 11. d5 {[%emt 0:12:24]} Nb8 {[%emt 0:08:23]} 12. Ne4 {[%emt 0:06:50]} Bf5 {[%emt 0:05:15]} 13. Bxf6 {[%emt 0:01:53]} gxf6 {[%emt 0:00:14]} 14. Nh4 {[%emt 0:00:08]} Bg6 {[%emt 0:01:11]} 15. Bh3 {[%emt 0:00:25]} Na6 {[%emt 0:02:16]} 16. Nf5 {[%emt 0:01:07]} Bxf5 {[%emt 0:04:13]} 17. Bxf5 {[%emt 0:00:12]} Rg8 {[%emt 0:00:08]} 18. Qc1 {[%emt 0:00:42]} Nc5 {[%emt 0:03:05]} 19. Qh6 {[%emt 0:00:32]} Rg6 {[%emt 0:00:30]} 20. Bxg6 {[%emt 0:00:12]} fxg6 {[%emt 0:00:05]} 21. f3 {[%emt 0:00:45]} Rf8 {[%emt 0:01:30]} 22. h4 {[%emt 0:02:40]} Qf7 {[%emt 0:04:05]} 23. Nxd6 {[%emt 0:00:56]} cxd6 {[%emt 0:00:04]} 24. e4 {[%emt 0:00:14]} Rg8 {[%emt 0:01:13]} 25. b4 {[%emt 0:00:10]} Na6 {[%emt 0:01:50]} 26. a3 {[%emt 0:00:16]} Nc7 {[%emt 0:00:28]} 27. a4 {[%emt 0:00:25]} Na6 {[%emt 0:00:41]} 28. Rab1 {[%emt 0:00:11]} Qd7 {[%emt 0:01:24]} 29. h5 {[%emt 0:03:25]} Qh3 {[%emt 0:05:50]} 30. Rf2 {[%emt 0:00:16]} Qxg3+ {[%emt 0:06:48]} 31. Rg2 {[%emt 0:00:41]} Qh4 {[%emt 0:00:19]} 32. Rf1 {[%emt 0:04:42]} Nxb4 {[%emt 0:05:07]} 33. Rh2 {[%emt 0:00:17]} Qg3+ {[%emt 0:00:04]} 34. Kh1 {[%emt 0:00:05]} gxh5 {[%emt 0:02:05]} 35. Qxf6+ {[%emt 0:00:44]} Rg7 {[%emt 0:00:05]} 36. Rc1 {[%emt 0:00:38]} Nc6 {[%emt 0:01:40]} 37. dxc6 {[%emt 0:00:33]} bxc6 {[%emt 0:00:02]} 38. Rb1 {[%emt 0:00:09]} h6 {[%emt 0:00:16]} 39. Rb8+ {[%emt 0:00:25]} Kh7 {[%emt 0:00:04]} 40. Qf5+ {[%emt 0:00:06]} Rg6 {[%emt 0:00:04]} 41. Rb7+ {[%emt 0:00:04]} Kg8 {[%emt 0:00:05]} 42. Qf7+ {[%emt 0:00:04]} Kh8 {[%emt 0:00:03]} 43. Qh7# {[%emt 0:00:02]} 1-0

[Event "EYCC Open U10 2021"]
[Site "Tornelo"]
[Date "2021.10.15"]
[Round "7.6"]
[White "Diachek, Andriy"]
[Black "Cankurt, Arda"]
[Result "0-1"]
[ECO "B22"]
[WhiteElo "1689"]
[BlackElo "1356"]
[Annotator "NA RC"]
[PlyCount "130"]
[EventDate "2021.10.15"]
[EventType "swiss"]
[EventCountry "NET"]
[SourceTitle "playchess.com"]
[Source "ChessBase"]
[SourceQuality "1"]
[TimeControl "5400+30"]

1. e4 {[%emt 0:00:30]} c5 {[%emt 0:01:38]} 2. Nf3 {[%emt 0:00:06]} e6 {[%emt 0:00:09]} 3. c3 {[%emt 0:00:04]} Nc6 {[%emt 0:00:05]} 4. d4 {[%emt 0:00:05]} d5 {[%emt 0:00:09]} 5. exd5 {[%emt 0:00:05]} exd5 {[%emt 0:00:05]} 6. Bb5 {[%emt 0:00:07]} Bd6 {[%emt 0:00:05]} 7. dxc5 {[%emt 0:00:23]} Bxc5 {[%emt 0:01:12]} 8. O-O {[%emt 0:00:09]} Nge7 {[%emt 0:00:18]} 9. Bf4 {[%emt 0:01:55]} O-O {[%emt 0:00:16]} 10. Nbd2 {[%emt 0:00:28]} Bg4 {[%emt 0:00:56]} 11. Bd3 {[%emt 0:02:33]} Ng6 {[%emt 0:01:20]} 12. Bg3 {[%emt 0:03:54]} f5 {[%emt 0:00:55]} 13. h3 {[%emt 0:28:23]} f4 {[%emt 0:13:05]} 14. Bh2 {[%emt 0:05:11]} Bf5 {[%emt 0:06:34]} 15. Nb3 {[%emt 0:08:26]} Bxd3 {[%emt 0:03:24]} 16. Qxd3 {[%emt 0:00:36]} Nge5 {[%emt 0:01:23]} 17. Nxe5 {[%emt 0:11:57]} Nxe5 {[%emt 0:01:16]} 18. Qe2 {[%emt 0:01:35]} Qg5 {[%emt 0:00:59]} 19. Qd1 {[%emt 0:11:34]} f3 {[%emt 0:02:19]} 20. Qxd5+ {[%emt 0:01:52]} Kh8 {[%emt 0:01:00]} 21. g4 {[%emt 0:01:30]} Rf5 {[%emt 0:04:13]} 22. Bxe5 {[%emt 0:07:41]} Rxe5 {[%emt 0:02:57]} 23. Qxf3 {[%emt 0:00:23]} Rf8 {[%emt 0:00:36]} 24. Qg2 {[%emt 0:01:45]} Re2 {[%emt 0:05:54]} 25. Nxc5 {[%emt 0:03:17]} Qxc5 {[%emt 0:00:13]} 26. Rab1 {[%emt 0:00:48]} b5 {[%emt 0:00:42]} 27. a3 {[%emt 0:01:43]} h6 {[%emt 0:02:28]} 28. Qg3 {[%emt 0:02:24]} Rc2 {[%emt 0:04:17]} 29. Qe3 {[%emt 0:04:15]} Qxe3 {[%emt 0:01:32]} 30. fxe3 {[%emt 0:00:08]} Rd8 {[%emt 0:00:42]} 31. Rf2 {[%emt 0:00:26]} Rdd2 {[%emt 0:00:14]} 32. Rxd2 {[%emt 0:00:05]} Rxd2 {[%emt 0:00:07]} 33. a4 {[%emt 0:01:41]} a6 {[%emt 0:01:28]} 34. axb5 {[%emt 0:00:18]} axb5 {[%emt 0:00:06]} 35. Re1 {[%emt 0:00:42]} Rxb2 {[%emt 0:00:10]} 36. e4 {[%emt 0:00:06]} Kg8 {[%emt 0:00:18]} 37. e5 {[%emt 0:00:09]} Kf8 {[%emt 0:00:17]} 38. Kf1 {[%emt 0:00:47]} Rh2 {[%emt 0:00:29]} 39. Re3 {[%emt 0:00:28]} Ke7 {[%emt 0:00:06]} 40. Kg1 {[%emt 0:00:15]} Rc2 {[%emt 0:00:08]} 41. h4 {[%emt 0:00:35]} Rb2 {[%emt 0:03:20]} 42. Re4 {[%emt 0:01:16]} Rb3 {[%emt 0:00:49]} 43. g5 {[%emt 0:00:48]} Rxc3 {[%emt 0:00:11]} 44. gxh6 {[%emt 0:00:03]} gxh6 {[%emt 0:00:10]} 45. Kf2 {[%emt 0:00:10]} Ke6 {[%emt 0:00:13]} 46. Ke1 {[%emt 0:00:18]} Rc5 {[%emt 0:01:18]} 47. Kd2 {[%emt 0:00:29]} Rxe5 {[%emt 0:00:25]} 48. Rf4 {[%emt 0:00:11]} Rf5 {[%emt 0:00:21]} 49. Rg4 {[%emt 0:00:12]} h5 {[%emt 0:00:16]} 50. Rb4 {[%emt 0:01:06]} Rc5 {[%emt 0:00:40]} 51. Kd3 {[%emt 0:00:24]} Ke5 {[%emt 0:00:32]} 52. Re4+ {[%emt 0:00:28]} Kf5 {[%emt 0:00:24]} 53. Rb4 {[%emt 0:00:12]} Rd5+ {[%emt 0:00:07]} 54. Ke3 {[%emt 0:00:07]} Ke5 {[%emt 0:00:16]} 55. Rb1 {[%emt 0:01:37]} Rc5 {[%emt 0:00:23]} 56. Rb4 {[%emt 0:00:18]} Kd5 {[%emt 0:00:29]} 57. Rd4+ {[%emt 0:00:46]} Kc6 {[%emt 0:00:11]} 58. Kd3 {[%emt 0:00:26]} Rd5 {[%emt 0:00:13]} 59. Rxd5 {[%emt 0:00:18]} Kxd5 {[%emt 0:00:05]} 60. Kc3 {[%emt 0:00:03]} Ke4 {[%emt 0:00:12]} 61. Kb4 {[%emt 0:00:03]} Kf4 {[%emt 0:00:04]} 62. Kxb5 {[%emt 0:00:03]} Kg4 {[%emt 0:00:05]} 63. Kc4 {[%emt 0:00:03]} Kxh4 {[%emt 0:00:09]} 64. Kd3 {[%emt 0:00:03]} Kg3 {[%emt 0:00:05]} 65. Ke2 {[%emt 0:00:04]} Kg2 {[%emt 0:00:05]} 0-1